[Event "*** MasterClass Titled Tuesday Blitz"]
[Site "Chess.com"]
[Date "2017.07.04"]
[Round "7"]
[White "Hrant_ChessMood"]
[Black "Gabrielian_Artur"]
[Result "1/2-1/2"]
[WhiteElo "2735"]
[BlackElo "2562"]
[TimeControl "180+2"]
[EndTime "14:44:30 PDT"]
[Termination "Game drawn by 50-move rule"]

1. Nf3 {[%clk 0:03:01.9]} 1... c5 {[%clk 0:02:59]} 2. c4 {[%clk 0:03:01.9]} 2...
Nc6 {[%clk 0:03:00.2]} 3. Nc3 {[%clk 0:03:03]} 3... e5 {[%clk 0:03:00.2]} 4. e3
{[%clk 0:03:04.1]} 4... Nf6 {[%clk 0:02:59.2]} 5. Be2 {[%clk 0:03:05.1]} 5... d5
{[%clk 0:02:56.4]} 6. d4 {[%clk 0:03:04.8]} 6... cxd4 {[%clk 0:02:55.9]} 7. exd4
{[%clk 0:03:06.7]} 7... exd4 {[%clk 0:02:54.1]} 8. Nxd4 {[%clk 0:03:06.6]} 8...
Be7 {[%clk 0:02:54.6]} 9. Nxc6 {[%clk 0:02:50.9]} 9... bxc6 {[%clk 0:02:55.4]}
10. cxd5 {[%clk 0:02:52.8]} 10... cxd5 {[%clk 0:02:55.8]} 11. O-O {[%clk
0:02:52.8]} 11... O-O {[%clk 0:02:56.3]} 12. Be3 {[%clk 0:02:54.1]} 12... Be6
{[%clk 0:02:56.4]} 13. Bd4 {[%clk 0:02:54.6]} 13... Qd7 {[%clk 0:02:49.8]} 14.
Bd3 {[%clk 0:02:49.3]} 14... Rfd8 {[%clk 0:02:45.1]} 15. Re1 {[%clk 0:02:49.9]}
15... Rab8 {[%clk 0:02:44]} 16. b3 {[%clk 0:02:48.2]} 16... Rb4 {[%clk
0:02:42.8]} 17. Ne2 {[%clk 0:02:42.1]} 17... a5 {[%clk 0:02:38.7]} 18. Rc1
{[%clk 0:02:29.4]} 18... a4 {[%clk 0:02:38.1]} 19. bxa4 {[%clk 0:02:20.3]} 19...
Qxa4 {[%clk 0:02:21.8]} 20. Bc3 {[%clk 0:01:47.3]} 20... Qxd1 {[%clk 0:02:18.4]}
21. Rcxd1 {[%clk 0:01:41.2]} 21... Ra4 {[%clk 0:02:17.6]} 22. Bb1 {[%clk
0:01:36.5]} 22... Rc8 {[%clk 0:02:13.6]} 23. f3 {[%clk 0:01:30.8]} 23... Bc5+
{[%clk 0:01:58.1]} 24. Bd4 {[%clk 0:01:31.6]} 24... Nd7 {[%clk 0:01:36.1]} 25.
Bxc5 {[%clk 0:01:30.7]} 25... Nxc5 {[%clk 0:01:36.1]} 26. Nd4 {[%clk 0:01:31.8]}
26... h6 {[%clk 0:01:30.6]} 27. Rd2 {[%clk 0:01:31.4]} 27... Rc4 {[%clk
0:01:29.2]} 28. Bc2 {[%clk 0:01:25.4]} 28... Kf8 {[%clk 0:01:25.4]} 29. Bb3
{[%clk 0:01:25.9]} 29... Rc3 {[%clk 0:01:23.6]} 30. Red1 {[%clk 0:01:18]} 30...
Nxb3 {[%clk 0:01:21.2]} 31. axb3 {[%clk 0:01:17.5]} 31... Rc1 {[%clk 0:01:20.7]}
32. Kf2 {[%clk 0:01:17.7]} 32... Rxd1 {[%clk 0:01:21.2]} 33. Rxd1 {[%clk
0:01:19.6]} 33... Bd7 {[%clk 0:01:20.6]} 34. Ke3 {[%clk 0:01:20.3]} 34... Ke7
{[%clk 0:01:21.4]} 35. Kd2 {[%clk 0:01:19.5]} 35... Ra8 {[%clk 0:01:21.7]} 36.
Kc3 {[%clk 0:01:18.5]} 36... Kd6 {[%clk 0:01:22.8]} 37. Kb2 {[%clk 0:01:13.4]}
37... g5 {[%clk 0:01:22.2]} 38. Rd2 {[%clk 0:01:10.9]} 38... h5 {[%clk
0:01:22.3]} 39. Nc2 {[%clk 0:01:09]} 39... Be6 {[%clk 0:01:19.4]} 40. b4 {[%clk
0:01:07.8]} 40... h4 {[%clk 0:01:18.9]} 41. Nd4 {[%clk 0:01:08]} 41... Bd7
{[%clk 0:01:19.1]} 42. Nb3 {[%clk 0:01:06.1]} 42... Bb5 {[%clk 0:01:13.7]} 43.
Na5 {[%clk 0:00:56.9]} 43... f5 {[%clk 0:01:07.6]} 44. g3 {[%clk 0:00:52.2]}
44... hxg3 {[%clk 0:01:01.9]} 45. hxg3 {[%clk 0:00:54.1]} 45... Rh8 {[%clk
0:01:00]} 46. Nb3 {[%clk 0:00:52.4]} 46... Bc4 {[%clk 0:00:57.9]} 47. Nd4 {[%clk
0:00:52.6]} 47... f4 {[%clk 0:00:56.6]} 48. gxf4 {[%clk 0:00:44]} 48... gxf4
{[%clk 0:00:57.4]} 49. Rg2 {[%clk 0:00:45.9]} 49... Rh3 {[%clk 0:00:41.9]} 50.
Rg6+ {[%clk 0:00:45.6]} 50... Kd7 {[%clk 0:00:37]} 51. Kc3 {[%clk 0:00:44.6]}
51... Rh1 {[%clk 0:00:27.8]} 52. Rf6 {[%clk 0:00:42.4]} 52... Rc1+ {[%clk
0:00:26.6]} 53. Kb2 {[%clk 0:00:43]} 53... Rd1 {[%clk 0:00:26.9]} 54. Rxf4
{[%clk 0:00:43.8]} 54... Rd3 {[%clk 0:00:28.1]} 55. Rh4 {[%clk 0:00:29.2]} 55...
Kd6 {[%clk 0:00:23.3]} 56. Rh6+ {[%clk 0:00:28.5]} 56... Ke5 {[%clk 0:00:19.9]}
57. Nc6+ {[%clk 0:00:21.1]} 57... Kf4 {[%clk 0:00:20.4]} 58. Rf6+ {[%clk
0:00:20.8]} 58... Ke3 {[%clk 0:00:20.8]} 59. Re6+ {[%clk 0:00:19.4]} 59... Kd2
{[%clk 0:00:21.2]} 60. Na5 {[%clk 0:00:20.7]} 60... Rxf3 {[%clk 0:00:19.2]} 61.
Rd6 {[%clk 0:00:18.6]} 61... Rd3 {[%clk 0:00:18]} 62. Rc6 {[%clk 0:00:15.3]}
62... Rc3 {[%clk 0:00:16.8]} 63. b5 {[%clk 0:00:04.9]} 63... Rc2+ {[%clk
0:00:16.2]} 64. Ka3 {[%clk 0:00:05.9]} 64... Bxb5 {[%clk 0:00:15.4]} 65. Rd6
{[%clk 0:00:05.3]} 65... Bc4 {[%clk 0:00:11]} 66. Kb4 {[%clk 0:00:06.2]} 66...
Kd3 {[%clk 0:00:11.2]} 67. Rh6 {[%clk 0:00:06]} 67... Rb2+ {[%clk 0:00:12.1]}
68. Ka3 {[%clk 0:00:04.9]} 68... Ra2+ {[%clk 0:00:12.7]} 69. Kb4 {[%clk
0:00:06]} 69... Rb2+ {[%clk 0:00:13.7]} 70. Ka3 {[%clk 0:00:07.3]} 70... Rb8
{[%clk 0:00:14.5]} 71. Rh3+ {[%clk 0:00:07]} 71... Kd2 {[%clk 0:00:15.2]} 72.
Rh2+ {[%clk 0:00:08.1]} 72... Kc3 {[%clk 0:00:16.3]} 73. Rh3+ {[%clk 0:00:09]}
73... Bd3 {[%clk 0:00:17.3]} 74. Rh7 {[%clk 0:00:08.2]} 74... d4 {[%clk
0:00:14.9]} 75. Rc7+ {[%clk 0:00:08]} 75... Kd2 {[%clk 0:00:15.4]} 76. Rd7
{[%clk 0:00:09.1]} 76... Ke3 {[%clk 0:00:15]} 77. Re7+ {[%clk 0:00:09.7]} 77...
Be4 {[%clk 0:00:15.4]} 78. Nc6 {[%clk 0:00:09.8]} 78... Rc8 {[%clk 0:00:13.9]}
79. Nb4 {[%clk 0:00:07.5]} 79... d3 {[%clk 0:00:13.9]} 80. Nd5+ {[%clk
0:00:06.9]} 80... Kd4 {[%clk 0:00:13.8]} 81. Nb6 {[%clk 0:00:07.8]} 81... Rd8
{[%clk 0:00:14.1]} 82. Na4 {[%clk 0:00:05.2]} 82... d2 {[%clk 0:00:14.9]} 83.
Nb2 {[%clk 0:00:06]} 83... Bc2 {[%clk 0:00:15.7]} 84. Rb7 {[%clk 0:00:05.1]}
84... Kc3 {[%clk 0:00:14.2]} 85. Rc7+ {[%clk 0:00:05.4]} 85... Kd4 {[%clk
0:00:14.8]} 86. Rxc2 {[%clk 0:00:05.8]} 86... Ke3 {[%clk 0:00:15]} 87. Nd1+
{[%clk 0:00:04.4]} 87... Ke2 {[%clk 0:00:16]} 88. Nc3+ {[%clk 0:00:05.5]} 88...
Ke1 {[%clk 0:00:17.4]} 89. Kb2 {[%clk 0:00:04.1]} 89... Rb8+ {[%clk 0:00:17.6]}
90. Ka2 {[%clk 0:00:04.8]} 90... Rc8 {[%clk 0:00:18.3]} 91. Rxd2 {[%clk
0:00:03.3]} 91... Kxd2 {[%clk 0:00:19.5]} 92. Na4 {[%clk 0:00:03.9]} 92... Kc2
{[%clk 0:00:20.3]} 93. Ka3 {[%clk 0:00:04.7]} 93... Rb8 {[%clk 0:00:21.1]} 94.
Nc5 {[%clk 0:00:04.9]} 94... Kc3 {[%clk 0:00:21.7]} 95. Na4+ {[%clk 0:00:04.1]}
95... Kc2 {[%clk 0:00:22.2]} 96. Nc5 {[%clk 0:00:05]} 96... Rb5 {[%clk
0:00:23.1]} 97. Na4 {[%clk 0:00:05.9]} 97... Rb3+ {[%clk 0:00:24.1]} 98. Ka2
{[%clk 0:00:07.1]} 98... Rh3 {[%clk 0:00:24.6]} 99. Nb2 {[%clk 0:00:05]} 99...
Rh8 {[%clk 0:00:18.4]} 100. Na4 {[%clk 0:00:05.2]} 100... Rh3 {[%clk 0:00:19.3]}
101. Nb2 {[%clk 0:00:05.8]} 101... Rb3 {[%clk 0:00:20.2]} 102. Na4 {[%clk
0:00:06.1]} 102... Rb5 {[%clk 0:00:20.7]} 103. Ka3 {[%clk 0:00:06.8]} 103...
Rb3+ {[%clk 0:00:19.9]} 104. Ka2 {[%clk 0:00:07.7]} 104... Rd3 {[%clk
0:00:19.4]} 105. Nb2 {[%clk 0:00:07.6]} 105... Rd5 {[%clk 0:00:17.4]} 106. Na4
{[%clk 0:00:08]} 106... Rb5 {[%clk 0:00:17.1]} 107. Ka3 {[%clk 0:00:08.6]}
107... Rb7 {[%clk 0:00:17.3]} 108. Ka2 {[%clk 0:00:06.7]} 108... Rb3 {[%clk
0:00:18.1]} 109. Nc5 {[%clk 0:00:05.4]} 109... Rb4 {[%clk 0:00:13.4]} 110. Ka3
{[%clk 0:00:03.4]} 110... Rc4 {[%clk 0:00:13.8]} 111. Na4 {[%clk 0:00:03.5]}
111... Rh4 {[%clk 0:00:13.1]} 112. Nb6 {[%clk 0:00:02.6]} 112... Kc3 {[%clk
0:00:13.6]} 113. Na4+ {[%clk 0:00:03.5]} 113... Kc4 {[%clk 0:00:14.7]} 114. Nb2+
{[%clk 0:00:04.7]} 114... Kb5 {[%clk 0:00:16]} 115. Kb3 {[%clk 0:00:05.3]}
115... Rh3+ {[%clk 0:00:17.4]} 116. Kc2 {[%clk 0:00:07.1]} 116... Kb4 {[%clk
0:00:18.6]} 117. Nd3+ {[%clk 0:00:08.3]} 117... Kc4 {[%clk 0:00:20]} 118. Nb2+
{[%clk 0:00:09.5]} 118... Kd4 {[%clk 0:00:21]} 119. Na4 {[%clk 0:00:09.4]}
119... Rg3 {[%clk 0:00:21.3]} 120. Nb2 {[%clk 0:00:09.9]} 120... Kc5 {[%clk
0:00:20.6]} 121. Nd3+ {[%clk 0:00:10.2]} 121... Kc4 {[%clk 0:00:21.4]} 122. Nb2+
{[%clk 0:00:12.1]} 122... Kd4 {[%clk 0:00:21.9]} 123. Na4 {[%clk 0:00:13.2]}
123... Ra3 {[%clk 0:00:23.1]} 124. Nb2 {[%clk 0:00:13.6]} 124... Ra8 {[%clk
0:00:24.6]} 125. Kb3 {[%clk 0:00:14.4]} 125... Rc8 {[%clk 0:00:24.8]} 126. Nd1
{[%clk 0:00:12.3]} 126... Rb8+ {[%clk 0:00:22.1]} 127. Kc2 {[%clk 0:00:12.9]}
127... Rh8 {[%clk 0:00:19.8]} 128. Nb2 {[%clk 0:00:13]} 128... Rh3 {[%clk
0:00:19.6]} 129. Nd1 {[%clk 0:00:13.4]} 129... Rh2+ {[%clk 0:00:20.7]} 130. Kb3
{[%clk 0:00:14.2]} 130... Rh3+ {[%clk 0:00:21.3]} 131. Kc2 {[%clk 0:00:14.5]}
131... Rh1 {[%clk 0:00:20.7]} 132. Nb2 {[%clk 0:00:15.1]} 132... Ra1 {[%clk
0:00:21.1]} 133. Kb3 {[%clk 0:00:15.7]} 133... Rc1 {[%clk 0:00:20.9]} 134. Na4
{[%clk 0:00:15.6]} 134... Rc8 {[%clk 0:00:20.1]} 135. Nb2 {[%clk 0:00:16.2]}
135... Rc7 {[%clk 0:00:20.7]} 136. Nd1 {[%clk 0:00:15]} 136... Rb7+ {[%clk
0:00:20.5]} 137. Kc2 {[%clk 0:00:14]} 137... Rc7+ {[%clk 0:00:20]} 138. Kb3
{[%clk 0:00:14.2]} 138... Rc1 {[%clk 0:00:20.2]} 139. Nb2 {[%clk 0:00:14.7]}
139... Rb1 {[%clk 0:00:20.4]} 140. Kc2 {[%clk 0:00:15.2]} 140... Ra1 {[%clk
0:00:20.8]} 141. Kb3 {[%clk 0:00:15.8]} 141... Rc1 {[%clk 0:00:21.9]} 142. Na4
{[%clk 0:00:15]} 142... Rc7 {[%clk 0:00:19.6]} 143. Nb2 {[%clk 0:00:15.3]}
1/2-1/2

[Event "*** MasterClass Titled Tuesday Blitz"]
[Site "Chess.com"]
[Date "2017.07.04"]
[Round "8"]
[White "blitzcopter"]
[Black "peteseeger"]
[Result "1/2-1/2"]
[WhiteElo "2049"]
[BlackElo "2153"]
[TimeControl "180+2"]
[EndTime "14:49:01 PDT"]
[Termination "Game drawn by repetition"]

1. e4 {[%clk 0:03:01.9]} 1... g6 {[%clk 0:02:59.9]} 2. d4 {[%clk 0:03:02.5]}
2... Bg7 {[%clk 0:03:00.9]} 3. Nc3 {[%clk 0:03:03.4]} 3... c6 {[%clk 0:03:01.6]}
4. Be3 {[%clk 0:03:03.8]} 4... d5 {[%clk 0:03:02.1]} 5. Qd2 {[%clk 0:03:04.5]}
5... dxe4 {[%clk 0:03:02.1]} 6. Nxe4 {[%clk 0:03:06.4]} 6... Nd7 {[%clk
0:03:02.6]} 7. Nf3 {[%clk 0:03:06.4]} 7... Ngf6 {[%clk 0:03:03.4]} 8. Nxf6+
{[%clk 0:03:06.4]} 8... Nxf6 {[%clk 0:03:04.2]} 9. Bd3 {[%clk 0:03:03.6]} 9...
O-O {[%clk 0:02:44.4]} 10. Bh6 {[%clk 0:02:41.4]} 10... Bxh6 {[%clk 0:02:37.2]}
11. Qxh6 {[%clk 0:02:43.3]} 11... Qa5+ {[%clk 0:02:37.4]} 12. c3 {[%clk
0:02:42.3]} 12... Bf5 {[%clk 0:02:35.8]} 13. Qg5 {[%clk 0:02:21.6]} 13... h6
{[%clk 0:02:12.3]} 14. Qd2 {[%clk 0:01:56.6]} 14... Bxd3 {[%clk 0:02:11.5]} 15.
Qxd3 {[%clk 0:01:58.5]} 15... Qf5 {[%clk 0:02:11.4]} 16. Qxf5 {[%clk 0:01:53.3]}
16... gxf5 {[%clk 0:02:11.5]} 17. Ne5 {[%clk 0:01:44.9]} 17... Rfd8 {[%clk
0:02:04.4]} 18. f3 {[%clk 0:01:42.9]} 18... e6 {[%clk 0:02:03.8]} 19. Kf2 {[%clk
0:01:42.8]} 19... Nd7 {[%clk 0:02:00.9]} 20. Nc4 {[%clk 0:01:41.4]} 20... Nb6
{[%clk 0:02:00]} 21. Ne5 {[%clk 0:01:41.7]} 21... Nd7 {[%clk 0:02:00.5]} 22. Nc4
{[%clk 0:01:33.1]} 22... Nb6 {[%clk 0:02:00.2]} 23. Ne5 {[%clk 0:01:33.6]} 23...
Nd7 {[%clk 0:02:00.8]} 1/2-1/2

[Event "*** MasterClass Titled Tuesday Blitz"]
[Site "Chess.com"]
[Date "2017.07.04"]
[Round "8"]
[White "Al_Shima"]
[Black "Rokis13"]
[Result "1/2-1/2"]
[WhiteElo "2352"]
[BlackElo "2340"]
[TimeControl "180+2"]
[EndTime "14:51:13 PDT"]
[Termination "Game drawn by repetition"]

1. b3 {[%clk 0:02:59.9]} 1... e5 {[%clk 0:02:57.5]} 2. Bb2 {[%clk 0:03:00.7]}
2... Nc6 {[%clk 0:02:57.6]} 3. e3 {[%clk 0:03:01.4]} 3... g6 {[%clk 0:02:58.7]}
4. Bb5 {[%clk 0:03:01.7]} 4... Bg7 {[%clk 0:02:59]} 5. Nf3 {[%clk 0:03:02.7]}
5... d6 {[%clk 0:02:56.7]} 6. d4 {[%clk 0:03:03.3]} 6... e4 {[%clk 0:02:51.9]}
7. Nfd2 {[%clk 0:03:04.2]} 7... f5 {[%clk 0:02:50.7]} 8. c4 {[%clk 0:03:02.5]}
8... Ne7 {[%clk 0:02:45.5]} 9. Nc3 {[%clk 0:03:02.7]} 9... O-O {[%clk
0:02:45.1]} 10. Bxc6 {[%clk 0:03:00.9]} 10... bxc6 {[%clk 0:02:44.7]} 11. f4
{[%clk 0:02:54.5]} 11... exf3 {[%clk 0:02:43.8]} 12. Qxf3 {[%clk 0:02:55]} 12...
Rb8 {[%clk 0:02:42.3]} 13. O-O-O {[%clk 0:02:54.8]} 13... a5 {[%clk 0:02:37.6]}
14. h4 {[%clk 0:02:46.2]} 14... h6 {[%clk 0:02:20.3]} 15. Qe2 {[%clk 0:02:37.2]}
15... d5 {[%clk 0:02:11.7]} 16. Qd3 {[%clk 0:02:37]} 16... Be6 {[%clk 0:02:09]}
17. Na4 {[%clk 0:02:33.3]} 17... f4 {[%clk 0:01:58.4]} 18. e4 {[%clk 0:02:30.8]}
18... dxe4 {[%clk 0:01:52.8]} 19. Qxe4 {[%clk 0:02:28.2]} 19... Qd6 {[%clk
0:01:46.1]} 20. Nc5 {[%clk 0:02:26]} 20... Bf5 {[%clk 0:01:45.5]} 21. Qe2 {[%clk
0:02:24.7]} 21... Rbe8 {[%clk 0:01:41.8]} 22. Nde4 {[%clk 0:02:23.8]} 22... Bxe4
{[%clk 0:01:34.7]} 23. Nxe4 {[%clk 0:02:20.5]} 23... Nf5 {[%clk 0:01:31.8]} 24.
Qf3 {[%clk 0:02:06.8]} 24... Qe6 {[%clk 0:01:29.1]} 25. Nc5 {[%clk 0:01:54.5]}
25... Qe3+ {[%clk 0:01:26.8]} 26. Qxe3 {[%clk 0:01:47.7]} 26... Nxe3 {[%clk
0:01:23.3]} 27. Rd2 {[%clk 0:01:47.8]} 27... a4 {[%clk 0:01:22.2]} 28. Nxa4
{[%clk 0:01:46]} 28... g5 {[%clk 0:01:17.8]} 29. hxg5 {[%clk 0:01:46.2]} 29...
hxg5 {[%clk 0:01:19.7]} 30. Nc5 {[%clk 0:01:46.6]} 30... g4 {[%clk 0:01:20]} 31.
Nd3 {[%clk 0:01:45.1]} 31... f3 {[%clk 0:01:19.3]} 32. gxf3 {[%clk 0:01:45.7]}
32... gxf3 {[%clk 0:01:19.9]} 33. Nf2 {[%clk 0:01:46.4]} 33... Ng2 {[%clk
0:01:16.3]} 34. Kd1 {[%clk 0:01:41.8]} 34... Ne3+ {[%clk 0:01:13.4]} 35. Kc1
{[%clk 0:01:42.5]} 35... Ng2 {[%clk 0:01:14.3]} 36. Kd1 {[%clk 0:01:35.9]} 36...
Ne3+ {[%clk 0:01:05.3]} 37. Kc1 {[%clk 0:01:36.9]} 37... Ng2 {[%clk 0:00:58.8]}
1/2-1/2

[Event "*** MasterClass Titled Tuesday Blitz"]
[Site "Chess.com"]
[Date "2017.07.04"]
[Round "8"]
[White "KNVB"]
[Black "MITerryble"]
[Result "0-1"]
[WhiteElo "2485"]
[BlackElo "2655"]
[TimeControl "180+2"]
[EndTime "14:51:35 PDT"]
[Termination "MITerryble won on time"]

1. d4 {[%clk 0:03:01.9]} 1... e6 {[%clk 0:03:00.9]} 2. Bf4 {[%clk 0:02:53.8]}
2... b6 {[%clk 0:02:59.5]} 3. e3 {[%clk 0:02:53.7]} 3... Bb7 {[%clk 0:03:00.7]}
4. Nf3 {[%clk 0:02:54.7]} 4... Nf6 {[%clk 0:03:01.9]} 5. h3 {[%clk 0:02:54]}
5... g6 {[%clk 0:03:02.8]} 6. c3 {[%clk 0:02:54.1]} 6... Bg7 {[%clk 0:03:04.1]}
7. a4 {[%clk 0:02:54.8]} 7... a6 {[%clk 0:03:03]} 8. Bd3 {[%clk 0:02:50.8]} 8...
O-O {[%clk 0:03:03.5]} 9. Nbd2 {[%clk 0:02:51.3]} 9... d6 {[%clk 0:03:04.7]} 10.
O-O {[%clk 0:02:51.9]} 10... Nbd7 {[%clk 0:03:05.9]} 11. Bh2 {[%clk 0:02:50.3]}
11... Qe7 {[%clk 0:03:05.3]} 12. Qc2 {[%clk 0:02:15.7]} 12... Rfd8 {[%clk
0:03:00.2]} 13. Rfe1 {[%clk 0:02:13.7]} 13... e5 {[%clk 0:02:59.4]} 14. dxe5
{[%clk 0:01:54.8]} 14... dxe5 {[%clk 0:03:00.3]} 15. Ne4 {[%clk 0:01:25.5]}
15... Ne8 {[%clk 0:03:01.1]} 16. Ned2 {[%clk 0:01:14.6]} 16... Nc5 {[%clk
0:03:00]} 17. Be2 {[%clk 0:01:15]} 17... e4 {[%clk 0:02:55.5]} 18. Nd4 {[%clk
0:01:15.9]} 18... Nd3 {[%clk 0:02:56.8]} 19. Rf1 {[%clk 0:01:04.3]} 19... c5
{[%clk 0:02:56.5]} 20. N4b3 {[%clk 0:01:05.4]} 20... Qe6 {[%clk 0:02:51.7]} 21.
Rad1 {[%clk 0:00:57.2]} 21... Rd7 {[%clk 0:02:22.8]} 22. Nb1 {[%clk 0:00:22.6]}
22... Rad8 {[%clk 0:02:14.6]} 23. N3d2 {[%clk 0:00:21.2]} 23... c4 {[%clk
0:01:56.8]} 24. b3 {[%clk 0:00:16.9]} 24... b5 {[%clk 0:01:54.4]} 25. axb5
{[%clk 0:00:17.1]} 25... axb5 {[%clk 0:01:55.2]} 26. Na3 {[%clk 0:00:15.5]}
26... Ba6 {[%clk 0:01:54.4]} 27. bxc4 {[%clk 0:00:09.8]} 27... bxc4 {[%clk
0:01:56.3]} 28. Qa4 {[%clk 0:00:11.1]} 28... Nb2 {[%clk 0:01:56.3]} 29. Qc2
{[%clk 0:00:11.6]} 29... Nxd1 {[%clk 0:01:57]} 30. Rxd1 {[%clk 0:00:12.8]} 30...
Bf8 {[%clk 0:01:39.7]} 31. Naxc4 {[%clk 0:00:06.1]} 31... Bxc4 {[%clk
0:01:39.1]} 32. Bxc4 {[%clk 0:00:06.5]} 32... Qxc4 {[%clk 0:01:37.6]} 0-1

[Event "*** MasterClass Titled Tuesday Blitz"]
[Site "Chess.com"]
[Date "2017.07.04"]
[Round "8"]
[White "IamSchrodingersCat"]
[Black "rasmussvane"]
[Result "0-1"]
[WhiteElo "2432"]
[BlackElo "2536"]
[TimeControl "180+2"]
[EndTime "14:51:44 PDT"]
[Termination "rasmussvane won on time"]

1. e4 {[%clk 0:03:01.9]} 1... c6 {[%clk 0:02:59.5]} 2. Nc3 {[%clk 0:03:02.1]}
2... d5 {[%clk 0:03:00.8]} 3. Nf3 {[%clk 0:03:03.6]} 3... Nf6 {[%clk 0:03:02.1]}
4. e5 {[%clk 0:03:03.6]} 4... Ne4 {[%clk 0:03:03.4]} 5. d4 {[%clk 0:03:04.7]}
5... Nxc3 {[%clk 0:03:02.1]} 6. bxc3 {[%clk 0:03:04.4]} 6... c5 {[%clk
0:03:03.4]} 7. Bd3 {[%clk 0:02:54.8]} 7... c4 {[%clk 0:03:03.6]} 8. Be2 {[%clk
0:02:53.8]} 8... Nc6 {[%clk 0:03:05.1]} 9. h3 {[%clk 0:02:51.7]} 9... e6 {[%clk
0:03:05.3]} 10. Bg5 {[%clk 0:02:49.2]} 10... Be7 {[%clk 0:02:48.3]} 11. Bxe7
{[%clk 0:02:47.6]} 11... Qxe7 {[%clk 0:02:50.2]} 12. O-O {[%clk 0:02:47.3]}
12... O-O {[%clk 0:02:42.2]} 13. Qd2 {[%clk 0:02:40.4]} 13... Bd7 {[%clk
0:02:40.7]} 14. Nh2 {[%clk 0:02:30.6]} 14... b5 {[%clk 0:02:38.7]} 15. a3 {[%clk
0:02:25.5]} 15... a5 {[%clk 0:02:38.8]} 16. f4 {[%clk 0:02:25]} 16... Rab8
{[%clk 0:02:17.7]} 17. Ng4 {[%clk 0:02:12.2]} 17... b4 {[%clk 0:01:40.6]} 18.
axb4 {[%clk 0:02:14.1]} 18... axb4 {[%clk 0:01:41.9]} 19. cxb4 {[%clk
0:02:06.2]} 19... Qxb4 {[%clk 0:01:42.8]} 20. c3 {[%clk 0:01:28.3]} 20... Qb2
{[%clk 0:01:40.9]} 21. Qe3 {[%clk 0:01:06.1]} 21... Rb3 {[%clk 0:01:33.8]} 22.
Rac1 {[%clk 0:01:06.7]} 22... Ne7 {[%clk 0:01:32.3]} 23. f5 {[%clk 0:00:23.1]}
23... Nxf5 {[%clk 0:01:27.6]} 24. Qg5 {[%clk 0:00:19.5]} 24... h6 {[%clk
0:01:13.9]} 25. Qh5 {[%clk 0:00:08.8]} 25... Qd2 {[%clk 0:00:59.8]} 0-1

[Event "*** MasterClass Titled Tuesday Blitz"]
[Site "Chess.com"]
[Date "2017.07.04"]
[Round "8"]
[White "Elshan1985"]
[Black "Witik"]
[Result "0-1"]
[WhiteElo "2635"]
[BlackElo "2564"]
[TimeControl "180+2"]
[EndTime "14:51:53 PDT"]
[Termination "Witik won by resignation"]

1. e4 {[%clk 0:03:01.9]} 1... c6 {[%clk 0:03:00.8]} 2. d4 {[%clk 0:03:01.7]}
2... d5 {[%clk 0:03:02.7]} 3. Nc3 {[%clk 0:03:02.9]} 3... dxe4 {[%clk
0:03:03.2]} 4. Nxe4 {[%clk 0:03:04.8]} 4... Bf5 {[%clk 0:03:03]} 5. Nc5 {[%clk
0:03:05.9]} 5... b6 {[%clk 0:02:58.6]} 6. Nb3 {[%clk 0:03:06.8]} 6... e6 {[%clk
0:02:56.1]} 7. Nf3 {[%clk 0:03:08]} 7... Bd6 {[%clk 0:02:56.3]} 8. g3 {[%clk
0:03:09.4]} 8... Qc7 {[%clk 0:02:56.5]} 9. Bg2 {[%clk 0:03:10.8]} 9... Ne7
{[%clk 0:02:56.4]} 10. O-O {[%clk 0:03:12.3]} 10... Nd7 {[%clk 0:02:55.9]} 11.
Qe2 {[%clk 0:03:13.5]} 11... O-O {[%clk 0:02:50.3]} 12. Nh4 {[%clk 0:03:10.7]}
12... Rac8 {[%clk 0:02:48.7]} 13. Nxf5 {[%clk 0:03:11.4]} 13... Nxf5 {[%clk
0:02:48]} 14. c3 {[%clk 0:03:12.7]} 14... c5 {[%clk 0:02:43.9]} 15. dxc5 {[%clk
0:03:12.5]} 15... Nxc5 {[%clk 0:02:44.9]} 16. Bd2 {[%clk 0:03:12.7]} 16... h6
{[%clk 0:02:41]} 17. Rfd1 {[%clk 0:03:10]} 17... Rfd8 {[%clk 0:02:36.6]} 18.
Nxc5 {[%clk 0:03:10.7]} 18... Bxc5 {[%clk 0:02:37.2]} 19. Be1 {[%clk 0:03:11.9]}
19... a5 {[%clk 0:02:34.1]} 20. Rxd8+ {[%clk 0:03:09.7]} 20... Rxd8 {[%clk
0:02:34.8]} 21. Rd1 {[%clk 0:03:11.3]} 21... Rd6 {[%clk 0:02:29.7]} 22. Rd2
{[%clk 0:03:10.4]} 22... Qd8 {[%clk 0:02:29.4]} 23. Rxd6 {[%clk 0:03:04.9]}
23... Qxd6 {[%clk 0:02:30.1]} 24. Qd2 {[%clk 0:03:05.5]} 24... Kf8 {[%clk
0:02:25.3]} 25. Qxd6+ {[%clk 0:03:05.3]} 25... Nxd6 {[%clk 0:02:18.2]} 26. Kf1
{[%clk 0:03:06.4]} 26... Ke7 {[%clk 0:02:16.5]} 27. Ke2 {[%clk 0:03:07.6]} 27...
b5 {[%clk 0:02:14.7]} 28. b4 {[%clk 0:03:02]} 28... Bb6 {[%clk 0:02:11]} 29. Bc6
{[%clk 0:03:02.1]} 29... a4 {[%clk 0:02:06]} 30. Bd2 {[%clk 0:02:56.6]} 30... g5
{[%clk 0:02:04.1]} 31. h4 {[%clk 0:02:56.4]} 31... f6 {[%clk 0:02:04.8]} 32.
hxg5 {[%clk 0:02:54.4]} 32... hxg5 {[%clk 0:02:05.6]} 33. Be3 {[%clk 0:02:19.3]}
33... Bxe3 {[%clk 0:02:03.8]} 34. Kxe3 {[%clk 0:02:21.2]} 34... e5 {[%clk
0:02:00.5]} 35. Kd3 {[%clk 0:02:19.2]} 35... f5 {[%clk 0:01:57.9]} 36. Bd5
{[%clk 0:02:18]} 36... g4 {[%clk 0:01:56.9]} 37. c4 {[%clk 0:02:18.2]} 37...
bxc4+ {[%clk 0:01:57.9]} 38. Bxc4 {[%clk 0:02:19.8]} 38... a3 {[%clk 0:01:53.8]}
39. Bd5 {[%clk 0:02:00.9]} 39... Kd8 {[%clk 0:01:48.3]} 40. Kc3 {[%clk
0:01:58.8]} 40... Kc7 {[%clk 0:01:42.8]} 41. Kb3 {[%clk 0:01:57.3]} 41... f4
{[%clk 0:01:43.6]} 42. Kxa3 {[%clk 0:01:49.7]} 42... Nf5 {[%clk 0:01:38.7]} 43.
Be6 {[%clk 0:01:43.6]} 43... Nxg3 {[%clk 0:01:27.8]} 44. fxg3 {[%clk 0:01:26.7]}
44... e4 {[%clk 0:01:24.9]} 45. Kb3 {[%clk 0:01:07.4]} 45... fxg3 {[%clk
0:01:20.2]} 0-1